Cogmind - Beta 14 @@@ ROGUE MODE // 2025.03.13 @ 15:20:31 Player: mathSq Result: Destroyed by G-34 Mercenary with Small Laser Performance ------------- Evolutions (0) 0 Regions Visited (1) 200 Robots Destroyed (15) 75 Value Destroyed (270) 270 Prototype IDs (4) 80 Alien Tech Used (0) 0 Bonus (0) 0 TOTAL SCORE: 625 Bonus ------- None Cogmind --------- Core Integrity 0/250 Matter 300/300 Energy 250/250 System Corruption 0% Temperature Cool (6) Movement Walking (260) Ox2 Location -10/Materials Parts ------- > --- POWER (1) -------- Ion Engine > --- PROPULSION (2) --- Aluminum Leg Aluminum Leg > --- UTILITY (2) ------ High-capacity Storage Unit > --- WEAPON (2) ------- Light Assault Rifle Mining Claw > --- INVENTORY (20) --- Light Ion Engine Light Treads Aluminum Leg Aluminum Leg Aluminum Leg Flight Unit Flight Unit Heat Sink Small Storage Unit Visual Processing Unit Improved Terrain Scanner Hacking Suite Small Laser Small Laser Small Laser Light Assault Rifle Light Assault Rifle Peak State ------------ > --- POWER ------------ Ion Engine > --- PROPULSION ------- Light Treads Light Treads > --- UTILITY ---------- Small Storage Unit Improved Terrain Scanner > --- WEAPON ----------- Medium Laser Light Assault Rifle > --- INVENTORY -------- Ion Engine Aluminum Leg Aluminum Leg Wheel Wheel Seismic Detector Small Laser [Rating: 9] Favorites ----------- Power Ion Engine Engine Ion Engine Propulsion Light Treads Treads Light Treads Leg Aluminum Leg Utility Seismic Detector Device Seismic Detector Storage High-capacity Storage Unit Weapon Medium Laser Energy Gun Medium Laser Ballistic Gun Light Assault Rifle Slashing Weapon Mining Claw Build | -11 -10 ------- Run | Yrd Mat Slots Evolved . | . . Power . | . . Propulsion . | . . Utility . | . . Weapon . | . . Parts Attached 17 | 8 9 Power 2 | 1 1 Engine 2 | 1 1 Core . | . . Reactor . | . . Propulsion 6 | 2 4 Treads 2 | 2 . Leg 4 | . 4 Wheel . | . . Hover . | . . Flight . | . . Utility 4 | 3 1 Device 2 | 2 . Storage 2 | 1 1 Processor . | . . Hackware . | . . Protection . | . . Artifact . | . . Weapon 5 | 2 3 Energy Gun 2 | 1 1 Energy Cannon . | . . Ballistic Gun 2 | 1 1 Ballistic Cannon . | . . Launcher . | . . Special Weapon . | . . Impact Weapon . | . . Slashing Weapon 1 | . 1 Piercing Weapon . | . . Special Melee Weapon . | . . Unidentified Prototypes . | . . Parts Lost 3 | . 3 Power . | . . Propulsion 1 | . 1 Utility 1 | . 1 Weapon 1 | . 1 Highest Loss Streak 1 | . 1 To Critical Strikes . | . . Average Slot Usage (%) 88 | . 88 Engine 9 | . 9 Treads 17 | . 17 Leg 10 | . 10 Device 11 | . 11 Storage 14 | . 14 Energy Gun 15 | . 15 Ballistic Gun 2 | . 2 Slashing Weapon 5 | . 5 Peak Build Rating 9 | 9 8 Average Rating 6 | 5 7 On Entrance 3 | . 7 Naked Turns . | . . Heaviest Build 49 | 14 49 Greatest Support 40 | 40 40 Greatest Overweight (x) 2 | 2 2 Average Overweight (x) . | . . Largest Inventory Capacity 20 | 8 20 Average Capacity 14 | 7 16 Most Carried 17 | 8 17 Average Carried 9 | 5 10 Final Capacity 20 | 8 20 Final Carried 17 | 7 17 Class Distribution -------------------- 100% | Mutant Dominant Class ---------------- Mutant | -10/Materials Resources | -11 -10 ----------- Run | Yrd Mat Matter Collected 386 | 299 87 Remotely . | . . Salvage Created 413 | 81 332 Parts 24 | 4 20 Haulers Intercepted . | . . Recyclers Shooed 2 | . 2 Parts Field Recycled . | . . Retrieved Matter . | . . Parts Self-Destructed . | . . Prevented . | . . Kills | -11 -10 ------- Run | Yrd Mat Combat Hostiles Destroyed 8 | . 8 Melee 4 | . 4 Guns 4 | . 4 Classes Destroyed 6 | 2 4 Worker 1 | 1 . Tunneler 3 | 3 . Operator 2 | . 2 Watcher 1 | . 1 Swarmer 3 | . 3 Grunt 5 | . 5 Best Kill Streak 2 | 2 2 Combat Bots Only 2 | . 2 Max Kills in Single Turn 1 | 1 1 Gunslinging . | . . Exploded . | . . Melee 1 | . 1 Uniques/NPCs Destroyed . | . . Combat | -11 -10 -------- Run | Yrd Mat Hostile Shots Fired 123 | . 123 Missed 33 | . 33 Damage Taken 924 | . 924 Core 257 | . 257 Absorbed by Shields . | . . Core Remaining (%) 100 | 100 . Volleys Fired 49 | 19 30 Largest 2 | 2 2 Hottest 90 | 70 90 Shots Fired 86 | 38 48 Gun 86 | 38 48 Cannon . | . . Launcher . | . . Special . | . . Kinetic 21 | 19 2 Thermal 65 | 19 46 Explosive . | . . Electromagnetic . | . . Robot Hit Streak 8 | 5 8 Robot Miss Streak 5 | 3 5 Penetration Max . | . . Secondary Targets . | . . Shots Hit Robots 62 | 22 40 Core Hits 21 | 8 13 Critical Kills . | . . Critical Parts Destroyed . | . . Critical Strikes 3 | 1 2 Burn 3 | 1 2 Melee Attacks 18 | . 18 Impact . | . . Slashing 18 | . 18 Piercing . | . . Sneak Attacks 3 | . 3 Combat Hostiles . | . . Follow-up Attacks . | . . Damage Inflicted 927 | 269 658 Guns 593 | 269 324 Cannons . | . . Explosions . | . . Melee 334 | . 334 Ramming . | . . Kinetic 91 | 91 . Thermal 502 | 178 324 Explosive . | . . Electromagnetic . | . . Impact . | . . Slashing 334 | . 334 Piercing . | . . Highest Corruption . | . . Average Corruption . | . . Corruption Purged . | . . Corruption Blocked . | . . Overload Shots . | . . Overflow Damage 53 | . 53 Projectiles . | . . Explosions . | . . Melee 53 | . 53 Knockbacks . | . . Impact . | . . Kinetic . | . . Secondary . | . . Self-Inflicted Damage . | . . Shots . | . . Rammed . | . . Targets Rammed . | . . Kicked . | . . Crushed . | . . Highest Temperature 222 | 100 222 Average Temperature 56 | 40 67 Received Heat Transfer 417 | . 417 Siege Activations . | . . Robots Corrupted . | . . Combat Hostiles . | . . Parts Fried . | . . Impact Corruptions . | . . Robots Melted . | . . Combat Hostiles . | . . Parts Melted 5 | . 5 Heat Transferred 1631 | 592 1039 Parts Sabotaged . | . . Parts Stolen . | . . Parts Stripped . | . . Power Chain Reactions . | . . Alert | -11 -10 ------- Run | Yrd Mat Peak Influence 191 | 20 191 Initial 13 | . 13 Average 43 | 8 52 Maximum Alert Level . | . . Low Security (%) 100 | 100 100 Level 1 . | . . Level 2 . | . . Level 3 . | . . Level 4 . | . . Level 5 . | . . High Security . | . . Max Security . | . . Squads Dispatched 3 | . 3 Investigation . | . . Extermination . | . . Reinforcement 3 | . 3 Assault . | . . Garrison . | . . Intercept . | . . Searches Triggered . | . . Construction Impeded . | . . Haulers Reinforced . | . . Active Scanning Responses . | . . Cargo Convoy Interrupts . | . . Stealth | -11 -10 --------- Run | Yrd Mat Distress Signals 2 | . 2 Communications Jammed . | . . Distress Signals . | . . Times Spotted 21 | . 21 Peak Tracking Total 4 | . 4 Tactical Retreats 2 | . 2 Traps | -11 -10 ------- Run | Yrd Mat Traps Triggered 2 | . 2 Indirectly . | . . Trap Hack Attempts . | . . Triggered . | . . Disarmed . | . . Reprogrammed . | . . Reused . | . . Traps Extracted . | . . Installed . | . . Triggered . | . . Machines | -11 -10 ---------- Run | Yrd Mat Machines Disabled . | . . Max in Single Turn . | . . Machines Repaired . | . . Machines Dismantled . | . . Machines Sabotaged . | . . Overloaded Fab Kills . | . . Hacking | -11 -10 --------- Run | Yrd Mat Machines Accessed 3 | . 3 Terminals 3 | . 3 Fabricators . | . . Repair Stations . | . . Recycling Units . | . . Scanalyzers . | . . Garrison Access . | . . Total Hacks 7 | . 7 Successful 4 | . 4 Failed 3 | . 3 Catastrophic 1 | . 1 Database Lockouts . | . . Manual 3 | . 3 Terminals 7 | . 7 Fabricators . | . . Repair Stations . | . . Recycling Units . | . . Scanalyzers . | . . Garrison Access . | . . Terminal Hacks 4 | . 4 Robot Analysis 1 | . 1 Prototype ID Bank 2 | . 2 Hauler Manifests 1 | . 1 Fabricator Hacks . | . . Repair Station Hacks . | . . Recycling Unit Hacks . | . . Scanalyzer . | . . Garrison Access Hacks . | . . Unauthorized Hacks . | . . Terminals . | . . Fabricators . | . . Repair Stations . | . . Recycling Units . | . . Scanalyzers . | . . Garrison Access . | . . Data Cores Recovered . | . . Used . | . . Hacking Detections 3 | . 3 Full Trace Events . | . . Feedback Events . | . . Feedback Blocked . | . . Robot Schematics Acquired . | . . Robots Built . | . . Authchips . | . . Time . | . . Total Robot Build Rating . | . . Part Schematics Acquired . | . . Parts Built . | . . Authchips . | . . Time . | . . Total Part Build Rating . | . . Parts Repaired . | . . Time . | . . Parts Recycled . | . . Recycled Matter . | . . Retrieved Matter . | . . Retrieved Components . | . . Parts Scanalyzed . | . . Part Schematics Acquired . | . . Parts Damaged . | . . Bothacking | -11 -10 ------------ Run | Yrd Mat Used RIF Installer . | . . Robots Hacked . | . . Non-combat . | . . Combat . | . . Robot Hacks Applied . | . . Relay Couplers Released . | . . Fabnet Peak Effective % . | . . Robots Rewired . | . . Allies Hacked . | . . Hacks Repelled . | . . Allies | -11 -10 -------- Run | Yrd Mat Total Allies . | . . Largest Group . | . . Highest-Rated Group . | . . Highest-Rated Ally . | . . Total Orders . | . . Ally Attacks . | . . Total Damage . | . . Kills . | . . Allies Corrupted . | . . Allies Melted . | . . Intel | -11 -10 ------- Run | Yrd Mat Robot Analysis Total 1 | . 1 Derelict Logs Recovered . | . . Drone Launches . | . . Drone Recoveries . | . . Exploration | -11 -10 ------------- Run | Yrd Mat Turns Passed 1229 | 271 958 Spaces Moved 484 | 129 355 Core 10 | 10 . Treads 369 | 119 250 Legs 105 | . 105 Wheels . | . . Hover . | . . Flight . | . . Fastest Speed 50 | 50 160 Average Speed 196 | 154 212 Slowest Speed 260 | 160 260 Overloaded Moves . | . . Propulsion Burnouts . | . . Robots Hopped . | . . Cave-ins Triggered . | . . Exploration Rate (%) 21 | 9 33 Regions Visited 1 Branch Regions . Pre-discovered Areas . | . . Known Exits Taken . | . . Unknown Exits Taken 1 | 1 . Scrap Searched . | . . Spaces Dug . | . . Terrain Destroyed . | . . Melee . | . . Projectile . | . . AOE . | . . Terrain Rammed . | . . Walls Destroyed . | . . Machines Disabled . | . . Actions | -11 -10 --------- Run | Yrd Mat Total 638 | 163 475 Wait 50 | . 50 Move 483 | 128 355 Hop . | . . Pick Up 19 | 8 11 Fast Attach 7 | 6 1 Attach 4 | 1 3 Detach . | . . Swap 6 | 1 5 Drop 2 | . 2 Fire 49 | 19 30 Melee 18 | . 18 Ram . | . . Kick . | . . Crush . | . . Escape Stasis . | . . Rewire . | . . Trap . | . . Miscellaneous . | . . Route ------- -11/Scrapyard -10/Materials (discovered 1 exit: [*Mat]) History --------- Turn | Location | Event 13 | -11/Scrapyard | Discovered new exit (range 16) 272 | -11/Scrapyard | Entered Materials 311 | -10/Materials | Build established: Mutant 872 | -10/Materials | Core integrity fell below 50% 1135 | -10/Materials | Discovered new exit (range 5) 1191 | -10/Materials | Core integrity fell below 20% 1230 | -10/Materials | Destroyed by G-34 Mercenary with Small Laser Last Messages --------------- 01017_ K-01 Serf cleans the Nuclear Reactor. 01024_ G-34 Mercenary destroyed. 01047_ Acquired 20 matter. 01050_ Sneak attack on R-06 Scavenger. 01076_ R-06 Scavenger collects Ion Engine. 01093_ S-10 Pest destroyed. 01094_ Seismic Detector destroyed. 01102_ Destroyed Lgt. Ion Engine. 01102_ S-10 Pest destroyed. 01111_ Acquired Flight Unit. 01114_ Acquired Lgt. Assault Rifle. 01119_ Acquired 10 matter. 01125_ K-01 Serf cleans the Atomic Centrifuge. 01135_ EXIT=FOUND 01137_ K-01 Serf cleans the Atomic Centrifuge. 01145_ ALERT: Hostiles spotted, dispatching reinforcements to Terminal M005. 01145_ K-01 Serf cleans the Atomic Centrifuge. 01213_ K-01 Serf collects debris. 01226_ K-01 Serf cleans the Matter Pump. Map ----- +----------------------------------------------------+ | ?????????# #??????????? | | ?????????# #??????????? | | ?????????# """ #???????????? | | ?????????# """ #???????????? | | ?????????# """ #???????????? | | ?????????# #????????????# | | ?????????# #????????????# | | ?????????# """ #????????????# | | ?????????# """ #????????????# | | ?????????# """ #????????????# | | ?????????# #????????????# ^^ | | ?????????# #????????????#^ ^ | | ?????????# """ ##???????????# | | ??????#### g""" #???????????# | | ??????# """ #???????????# | | ??????# < #???????????# | | ??????# #???????????# | | ?######### "T" #???????????# | | ?# #gg#################??# | | ?#/ """" # #?# """ """ """ #??# | | ?# """" # #?# """ """ """ #??# | | ?# """" # #?# """ """ """ #??# | | ?# # #?# #??# | | ?# "T" # #?# #??# | | ?# """ # %#?# =*% ! #??# | | ?#####+###@ #########/########## | | ????# * + # | | ????# k^^ ^ ^ %#% """ # | | ????# """ """ ^""" # """ # | | ????# """ """ """ # | """ # | | ????# """ """ """ # #% | | ????# # """%+ | | ????# % # """ # | | ????# ##+#########+### """ # | | ????# # ## # # | | ????# #!!! ## """ ############# | | ????####!! ## """ #???????????? | | ???????#!! ## """ /#???????????? | | ???????# ## / #???????????? | | ???????# ## """ #???????????? | | ???????# ## """ #???????????? | | ???????# ## """ #???????????? | | ???????# ## #???????????? | | ???????################???????????? | | ??????????????????????????????????? | | ??????????????????????????????????? | | ??????????????????????????????????? | | ??????????????????????????????????? | | | | | +----------------------------------------------------+ Best States ------------- Heat Dissipation 25 Energy Generation 10 Energy Capacity 250 Matter Stores 300 Matter Capacity 300 Sight Range 16 Terrain Scan Density 10 Evasion (%) 40 Recoil Reduction 2 Item Schematics ----------------- None Robot Schematics ------------------ None Fabricated ------------ Nothing Alien Tech Used ----------------- None Achievements -------------- None Challenges ------------ None Game ------ Seed VisualHugeBay Manual? 0 Play Time 00:14:50 Cumulative 9.8 hours Start 2025.03.13 @ 15:03:04 End 2025.03.13 @ 15:20:31 Sessions 1 Manual Loads 0 Difficulty Rogue Special Mode None Game No. 10 Rogue 10 Adventurer 0 Explorer 0 Win Type - Total 0 Types 0/0/0/0/0/0/0/0/0 Lore% 17 Gallery% 16 Achievement% 20 Wizard Run 0 Options --------- Layout 0 ASCII 0 Keyboard 0 Movement Vi Keybinds 0 Fullscreen 1 Font 24/Tamsyn Map View 76x50 Zoom Use 0% Tactical HUD 1 Map Filters NONE Filters NONE Steam 1 RUN: 343412e4-1d9e-4495-8253-1fba35156aab